bitfinex-derivatives/quotes_BNBF0:USTF0_20241231
["timestamp","ask_amount","ask_price","bid_price","bid_amount"]
[1735685467576,1.06720895,702.26,701.3,1.07048797]
[1735685468778,1.48790542,702.3,701.16,1.07048797]
[1735685470773,1.48790542,702.3,701.18,1.07048797]
[1735685474185,1.48790542,702.3,701.17,1.07048797]
[1735685475378,1.48790542,702.3,701.18,1.07048797]
[1735685477179,1.48790542,702.3,701.19,1.07048797]
[1735685478185,1.06720895,702.25,701.31,1.07048797]
[1735685479091,1.06720895,702.26,701.31,1.07048797]
[1735685479284,1.06720895,702.26,701.3,1.07048797]
[1735685480183,1.48790542,702.3,701.1,1.07048797]
[1735685481483,1.48790542,702.3,701.06,1.35577025]
[1735685482583,1.48790542,702.3,701.06,0.28528228]
[1735685485186,1.06720895,702.35,701.06,0.28528228]
[1735685485792,1.4876934,702.45,701.06,0.28528228]
[1735685489193,1.4876934,702.45,701.12,1.07048797]
[1735685489394,1.4876934,702.45,701.13,0.2852538]
[1735685491998,1.4876934,702.45,701.13,1.35574177]
[1735685492893,1.4876934,702.45,701.14,1.07048797]
[1735685493094,1.4876934,702.45,701.15,0.28524566]
[1735685493798,1.06720895,702.67,701.15,0.28524566]
[1735685493995,1.48741256,702.6,701.15,0.28524566]
[1735685495099,0.26211538,702.59,701.15,0.28524566]
[1735685495302,1.48741256,702.6,701.17,1.07048797]
[1735685495493,0.26211641,702.59,701.17,1.07048797]
[1735685496593,0.26211641,702.59,701.21,1.07048797]
[1735685497796,0.26211641,702.59,701.26,1.07048797]
[1735685498698,0.26211641,702.59,701.25,1.07048797]
[1735685499995,0.2621223,702.58,701.25,1.07048797]
[1735685500198,0.2621223,702.57,701.25,1.07048797]
[1735685500499,0.2621223,702.56,701.25,1.07048797]
[1735685500700,0.2621223,702.55,701.27,1.07048797]
[1735685500900,0.2621223,702.54,701.27,1.07048797]
[1735685501096,0.2621223,702.53,701.27,1.07048797]
[1735685501297,1.48741256,702.6,701.27,1.07048797]
[1735685501499,0.26211773,702.59,701.27,1.07048797]
[1735685502697,0.26211763,702.58,701.27,1.07048797]
[1735685502903,0.26211763,702.57,701.27,1.07048797]
[1735685503097,0.26211763,702.56,701.27,1.07048797]
[1735685503403,1.48741256,702.6,701.15,0.28524566]
[1735685503404,0.26211745,702.55,701.28,1.07048797]
[1735685503696,0.26211745,702.54,701.28,1.07048797]
[1735685503900,0.26211745,702.53,701.28,1.07048797]
[1735685504098,0.26211745,702.52,701.28,1.07048797]
[1735685504300,0.26211745,702.51,701.28,1.07048797]
[1735685504498,0.26211745,702.5,701.28,1.07048797]
[1735685505502,0.26212474,702.49,701.27,1.07048797]
[1735685505694,1.48739666,702.51,701.27,1.07048797]
[1735685505899,0.26212288,702.5,701.27,1.07048797]
[1735685507705,0.26212288,702.5,701.18,1.07048797]
[1735685507706,0.26212288,702.5,701.26,1.07048797]
[1735685508106,0.26212456,702.49,701.26,1.07048797]
[1735685508304,0.26212456,702.48,701.26,1.07048797]
[1735685508507,1.48739666,702.51,701.26,1.07048797]
[1735685508701,0.26212456,702.5,701.26,1.07048797]
[1735685510308,0.26212456,702.5,701.28,1.07048797]
[1735685510707,1.48739666,702.51,701.28,1.07048797]
[1735685511007,0.26212528,702.5,701.28,1.07048797]
[1735685512102,1.48739666,702.51,701.29,1.07048797]
[1735685512103,0.2621242,702.49,701.29,1.07048797]
[1735685512405,0.2621242,702.48,701.29,1.07048797]
[1735685512607,1.48739666,702.51,701.29,1.07048797]
[1735685512809,0.26212456,702.5,701.29,1.07048797]
[1735685513509,0.26212593,702.49,701.29,1.07048797]
[1735685513706,0.26212593,702.48,701.29,1.07048797]
[1735685514012,1.48739666,702.51,701.29,1.07048797]
[1735685514013,0.26212593,702.47,701.29,1.07048797]
[1735685514209,1.48739666,702.51,701.29,1.07048797]
[1735685514409,0.26212715,702.5,701.29,1.07048797]
[1735685514609,1.48739666,702.51,701.29,1.07048797]
[1735685515915,1.48739666,702.51,701.23,1.07048797]
[1735685516115,1.48739666,702.51,701.24,0.28520905]
[1735685519215,1.48739666,702.51,701.26,1.07048797]
[1735685520216,1.48739666,702.51,701.24,0.28520905]
[1735685521621,1.06720895,702.49,701.31,1.07048797]
[1735685522417,1.06720895,702.49,701.3,1.07048797]
[1735685523424,1.48739666,702.51,701.24,0.28520905]
[1735685544442,0.2621889,702.5,701.24,0.28520905]
[1735685544844,0.26218925,702.49,701.24,0.28520905]
[1735685545145,0.26218925,702.48,701.24,0.28520905]
[1735685545343,1.48739666,702.51,701.24,0.28520905]
[1735685545537,0.26218908,702.5,701.24,0.28520905]
[1735685547339,1.48739666,702.51,701.24,0.28520905]
[1735685547544,0.26219043,702.5,701.24,0.28520905]
[1735685550141,0.2621837,702.49,701.24,0.28520905]
[1735685550345,0.2621837,702.48,701.24,0.28520905]
[1735685550550,0.2621837,702.47,701.24,0.28520905]
[1735685550748,0.26218442,702.46,701.24,0.28520905]
[1735685550940,0.26218442,702.45,701.24,0.28520905]
[1735685551143,1.06720895,702.5,701.24,0.28520905]
[1735685551450,0.26218455,702.49,701.24,0.28520905]
[1735685552043,1.3293935,702.49,701.24,0.28520905]
[1735685552249,0.26218455,702.48,701.24,0.28520905]
[1735685552951,0.26218458,702.47,701.24,0.28520905]
[1735685553144,0.26218458,702.46,701.24,0.28520905]
[1735685553342,0.26218458,702.47,701.24,0.28520905]
[1735685553551,0.26218458,702.46,701.24,0.28520905]
[1735685553746,1.06720895,702.48,701.24,0.28520905]
[1735685553747,0.26218458,702.45,701.24,0.28520905]
[1735685553949,0.26218458,702.44,701.24,0.28520905]
[1735685554248,1.06720895,702.48,701.24,0.28520905]
[1735685554249,0.26218458,702.43,701.24,0.28520905]
[1735685554447,0.26218458,702.42,701.24,0.28520905]
[1735685555552,1.06720895,702.4,701.24,0.28520905]
[1735685556351,1.4877411,702.43,701.24,0.28520905]
[1735685556555,0.2621855,702.42,701.24,0.28520905]
[1735685558050,2.55495005,702.43,701.24,0.28520905]
[1735685558255,0.26218642,702.42,701.24,0.28520905]
[1735685558551,1.32939537,702.42,701.24,0.28520905]
[1735685558746,0.26218642,702.41,701.24,0.28520905]
[1735685558949,1.06720895,702.42,701.24,0.28520905]
[1735685559445,1.06720895,702.4,701.24,0.28520905]
[1735685560452,1.06720895,702.41,701.24,0.28520905]
[1735685561253,1.06720895,702.38,701.24,0.28520905]
[1735685562153,1.06720895,702.36,701.24,0.28520905]
[1735685563356,1.06720895,702.33,701.24,0.28520905]
[1735685564348,1.06720895,702.32,701.24,0.28520905]
[1735685564751,2.55495005,702.32,701.24,0.28520905]
[1735685565450,1.4877411,702.32,701.24,0.28520905]
[1735685575761,1.06720895,702.29,701.24,0.28520905]
[1735685576767,1.4877411,702.32,701.24,0.28520905]
[1735685582765,2.55495005,702.32,701.24,0.28520905]
[1735685583664,1.4877411,702.32,701.24,0.28520905]
[1735685583865,0.26229658,702.31,701.24,0.28520905]
[1735685584166,0.26234552,702.3,701.24,0.28520905]
[1735685584362,0.26234552,702.29,701.24,0.28520905]
[1735685584559,1.06720895,702.05,700.55,1.07048797]
[1735685584761,1.06720895,702.05,700.56,0.28548589]
[1735685585162,1.48869044,702.04,700.56,0.28548589]
[1735685588874,0.28488811,702.03,700.56,0.28548589]
[1735685594778,0.26241583,702.02,700.56,0.28548589]
[1735685597382,0.26241433,702.01,700.56,0.28548589]
[1735685597582,0.26241433,702.0,700.56,0.28548589]
[1735685597774,0.26241433,701.99,700.56,0.28548589]
[1735685597972,0.26241433,701.98,700.56,0.28548589]
[1735685598179,0.54732273,701.98,700.56,0.28548589]
[1735685598379,0.26241433,701.97,700.56,0.28548589]
[1735685598982,1.48927444,701.96,700.56,0.28548589]
[1735685599278,0.26241433,701.95,700.56,0.28548589]
[1735685600183,0.26242438,701.94,700.56,0.28548589]
[1735685600378,1.48927444,701.96,700.56,0.28548589]
[1735685600576,0.26242362,701.95,700.56,0.28548589]
[1735685602478,1.48927444,701.96,700.56,0.28548589]
[1735685609788,0.2624433,701.95,700.56,0.28548589]
[1735685611083,0.28492463,701.94,700.56,0.28548589]
[1735685611284,0.2624433,701.93,700.56,0.28548589]
[1735685612182,0.28493275,701.92,700.56,0.28548589]
[1735685612383,0.2624433,701.91,700.56,0.28548589]
[1735685612588,0.28494087,701.9,700.56,0.28548589]
[1735685612785,0.2624433,701.89,700.56,0.28548589]
[1735685613290,0.28494899,701.88,700.56,0.28548589]
[1735685613491,0.2624433,701.87,700.56,0.28548589]
[1735685613890,0.28495711,701.86,700.56,0.28548589]
[1735685614091,0.26245466,701.85,700.56,0.28548589]
[1735685614386,0.28496523,701.84,700.56,0.28548589]
[1735685614591,0.26245466,701.83,700.56,0.28548589]
[1735685616092,0.28496523,701.84,700.56,0.28548589]
[1735685616292,0.26245524,701.83,700.56,0.28548589]
[1735685618397,1.06720895,701.79,700.56,0.28548589]
[1735685618597,0.26245524,701.78,700.56,0.28548589]
[1735685618896,0.26245515,701.77,700.56,0.28548589]
[1735685619097,0.26245515,701.76,700.56,0.28548589]
[1735685619297,0.26245515,701.75,700.56,0.28548589]
[1735685619596,1.06720895,701.69,700.56,0.28548589]
[1735685619796,0.26245515,701.68,700.56,0.28548589]
[1735685620799,1.06720895,701.66,700.56,0.28548589]
[1735685621090,0.26245515,701.65,700.56,0.28548589]
[1735685621495,0.26245533,701.64,700.56,0.28548589]
[1735685621797,0.26245533,701.63,700.56,0.28548589]
[1735685622099,0.26245533,701.62,700.56,0.28548589]
[1735685622292,1.06720895,701.65,700.56,0.28548589]
[1735685622494,0.26245533,701.64,700.56,0.28548589]
[1735685622791,0.26245524,701.63,700.56,0.28548589]
[1735685622992,1.06720895,701.65,700.56,0.28548589]
[1735685623194,0.2624551,701.64,700.56,0.28548589]
[1735685623797,1.48930631,701.63,700.56,0.28548589]
[1735685624098,0.2624551,701.62,700.56,0.28548589]
[1735685625200,1.48930631,701.63,700.56,0.28548589]
[1735685627997,0.2624534,701.62,700.56,0.28548589]
[1735685629397,1.48930631,701.63,700.56,0.28548589]
[1735685629596,1.06720895,701.61,700.56,0.28548589]
[1735685629900,0.2624536,701.6,700.56,0.28548589]
[1735685630298,0.26245607,701.59,700.56,0.28548589]
[1735685630498,1.06720895,701.57,700.56,0.28548589]
[1735685630701,0.26245607,701.56,700.56,0.28548589]
[1735685632202,1.06720895,701.57,700.56,0.28548589]
[1735685632402,0.26245369,701.56,700.56,0.28548589]
[1735685632601,1.06720895,701.58,700.56,0.28548589]
[1735685632801,0.26245369,701.57,700.56,0.28548589]
[1735685634100,1.06720895,701.58,700.56,0.28548589]
[1735685635606,1.48930631,701.63,700.56,0.28548589]
[1735685635607,1.06720895,701.6,700.56,0.28548589]
[1735685637006,1.06720895,701.62,700.56,0.28548589]
[1735685638006,2.55651526,701.63,700.56,0.28548589]
[1735685641409,1.06720895,701.61,700.56,0.28548589]
[1735685644211,1.06720895,701.6,700.56,0.28548589]
[1735685645213,1.06720895,701.58,700.56,0.28548589]
[1735685647207,1.06720895,701.56,700.56,0.28548589]
[1735685649814,1.48930631,701.63,700.56,0.28548589]
[1735685649815,1.06720895,701.57,700.56,0.28548589]
[1735685651015,1.06720895,701.56,700.56,0.28548589]
[1735685651716,1.06720895,701.57,700.56,0.28548589]
[1735685654117,1.06720895,701.56,700.56,0.28548589]
[1735685657715,1.06720895,701.54,700.56,0.28548589]
[1735685658823,1.06720895,701.53,700.58,1.07048797]
[1735685659823,1.06720895,701.54,700.56,0.28548589]
[1735685661224,1.06720895,701.56,700.56,0.28548589]
[1735685662424,1.06720895,701.55,700.56,0.28548589]
[1735685663625,1.06720895,701.54,700.56,0.28548589]
[1735685668717,1.06720895,701.53,700.56,0.28548589]
[1735685669927,1.06720895,701.52,700.56,0.28548589]
[1735685670822,1.06720895,701.51,700.56,0.28548589]
[1735685671925,1.06720895,701.52,700.56,0.28548589]
[1735685673020,0.28496523,701.84,700.56,0.28548589]
[1735685706952,0.28496523,701.84,700.59,1.07048797]
[1735685710855,0.28496523,701.84,700.61,1.07048797]
[1735685714057,0.28496523,701.84,700.64,1.07048797]
[1735685714856,0.28496523,701.84,700.66,1.07048797]
[1735685715655,1.06720895,701.83,700.81,1.07048797]
[1735685716355,1.48875413,701.82,700.81,1.07048797]
[1735685716755,1.48875413,701.82,700.56,0.28548589]
[1735685716756,1.06720895,701.8,700.85,1.07048797]
[1735685718061,1.48875413,701.82,700.78,1.07048797]
[1735685719373,1.48875413,701.82,700.8,1.07048797]
[1735685720262,1.48875413,701.82,700.76,1.07048797]
[1735685721462,1.48875413,701.82,700.75,1.07048797]
[1735685722563,1.48875413,701.82,700.74,1.07048797]
[1735685725161,1.48875413,701.82,700.71,1.07048797]
[1735685727564,1.06720895,701.76,700.62,1.07048797]
[1735685728963,1.06720895,701.77,700.6,1.07048797]
[1735685729871,1.48875413,701.82,700.56,0.28548589]
[1735685734971,0.26243075,701.81,700.56,0.28548589]
[1735685736070,0.28498147,701.8,700.56,0.28548589]
[1735685736271,0.26243075,701.79,700.56,0.28548589]
[1735685736567,0.28498959,701.78,700.56,0.28548589]
[1735685736768,0.26243075,701.77,700.56,0.28548589]
[1735685738075,0.28498959,701.78,700.56,0.28548589]
[1735685738270,0.26245264,701.77,700.56,0.28548589]
[1735685740173,0.28498959,701.78,700.56,0.28548589]
[1735685745073,0.2624525,701.77,700.56,0.28548589]
[1735685746279,0.2624534,701.76,700.56,0.28548589]
[1735685746480,0.2624534,701.75,700.56,0.28548589]
[1735685746679,0.2624534,701.74,700.56,0.28548589]
[1735685746883,0.2624534,701.73,700.56,0.28548589]
[1735685747078,1.48938067,701.74,700.56,0.28548589]
[1735685747280,0.26245587,701.73,700.56,0.28548589]
[1735685747681,1.48938067,701.74,700.56,0.28548589]
[1735685749978,0.26245575,701.73,700.56,0.28548589]
[1735685751679,0.26245906,701.72,700.56,0.28548589]
[1735685751884,0.26245906,701.71,700.56,0.28548589]
[1735685752083,0.26245906,701.7,700.56,0.28548589]
[1735685752278,1.48938067,701.74,700.56,0.28548589]
[1735685752485,0.26246165,701.73,700.56,0.28548589]
[1735685754180,1.48938067,701.74,700.56,0.28548589]
[1735685754485,0.26245891,701.73,700.56,0.28548589]
[1735685756887,0.26245909,701.72,700.56,0.28548589]
[1735685757088,0.26245909,701.71,700.56,0.28548589]
[1735685757287,0.26245909,701.7,700.56,0.28548589]
[1735685757488,1.48938067,701.74,700.56,0.28548589]
[1735685757687,0.26245872,701.73,700.56,0.28548589]
[1735685759592,1.48938067,701.74,700.56,0.28548589]
[1735685759786,0.26246447,701.73,700.56,0.28548589]
[1735685760285,1.32967342,701.73,700.56,0.28548589]
[1735685760589,0.26246447,701.72,700.56,0.28548589]
[1735685761587,1.06720895,701.62,700.56,0.28548589]
[1735685761792,0.2624652,701.61,700.56,0.28548589]
[1735685762489,1.32967415,701.61,700.56,0.28548589]
[1735685762683,0.2624652,701.6,700.56,0.28548589]
[1735685763489,1.06720895,701.59,700.56,0.28548589]
[1735685764590,0.26246749,701.58,700.56,0.28548589]
[1735685764793,1.06720895,701.61,700.56,0.28548589]
[1735685764992,0.26246597,701.6,700.56,0.28548589]
[1735685765586,1.06720895,701.61,700.56,0.28548589]
[1735685766086,1.06720895,701.58,700.56,0.28548589]
[1735685767087,0.28498959,701.78,700.56,0.28548589]
[1735685767088,1.06720895,701.67,700.56,0.28548589]
[1735685768693,1.06720895,701.71,700.56,0.28548589]
[1735685769594,0.28498959,701.78,700.56,0.28548589]
[1735685769595,1.06720895,701.69,700.56,0.28548589]
[1735685770597,1.06720895,701.68,700.56,0.28548589]
[1735685772196,0.28498959,701.78,700.56,0.28548589]
[1735685772197,1.06720895,701.71,700.56,0.28548589]
[1735685772590,1.35222697,701.71,700.56,0.28548589]
[1735685773194,0.28501802,701.71,700.56,0.28548589]
[1735685791411,0.262434,701.7,700.56,0.28548589]
[1735685796116,0.2624419,701.69,700.56,0.28548589]
[1735685796319,0.2624419,701.68,700.56,0.28548589]
[1735685796718,1.48918416,701.69,700.56,0.28548589]
[1735685796913,0.26244347,701.68,700.56,0.28548589]
[1735685798819,0.26245799,701.67,700.56,0.28548589]
[1735685799018,1.32966694,701.66,700.56,0.28548589]
[1735685799219,0.26245799,701.65,700.56,0.28548589]
[1735685799821,1.32966694,701.65,700.56,0.28548589]
[1735685800020,0.26245799,701.64,700.56,0.28548589]
[1735685801322,0.26245799,701.63,700.56,0.28548589]
[1735685801522,0.26245799,701.62,700.56,0.28548589]
[1735685801818,0.26245799,701.61,700.56,0.28548589]
[1735685802023,0.26245799,701.6,700.56,0.28548589]
[1735685802220,1.06720895,701.65,700.56,0.28548589]
[1735685802420,0.26246169,701.64,700.56,0.28548589]
[1735685803526,1.06720895,701.66,700.56,0.28548589]
[1735685803527,0.26246169,701.63,700.56,0.28548589]
[1735685803824,0.26246169,701.62,700.56,0.28548589]
[1735685804022,1.06720895,701.66,700.43,1.07048797]
[1735685804325,1.61473041,701.65,700.44,1.07048797]
[1735685804523,0.54752552,701.64,700.44,1.07048797]
[1735685804722,0.54752958,701.63,700.44,1.07048797]
[1735685804921,0.26249028,701.62,700.44,1.07048797]
[1735685805522,1.32969923,701.62,700.36,1.07048797]
[1735685805723,0.26249028,701.61,700.36,1.07048797]
[1735685806825,0.26249028,701.61,700.1,2.6752937]
[1735685806826,2.81924715,701.6,700.31,1.07048797]
[1735685807126,0.26249815,701.59,700.31,1.07048797]
[1735685807627,1.3297071,701.59,700.3,1.07048797]
[1735685807825,0.26249815,701.58,700.3,1.07048797]
[1735685809530,1.06720895,701.55,700.32,1.07048797]
[1735685809827,0.26251121,701.54,700.32,1.07048797]
[1735685810022,1.06720895,701.55,700.32,1.07048797]
[1735685810224,0.26252029,701.54,700.32,1.07048797]
[1735685810823,1.06720895,701.51,700.29,1.07048797]
[1735685811026,0.26252029,701.5,700.29,1.07048797]
[1735685812026,0.26252495,701.49,700.29,1.07048797]
[1735685812226,1.48954005,701.6,700.06,0.28568979]
[1735685812227,0.26252495,701.48,700.19,1.07048797]
[1735685812426,0.26252495,701.47,700.19,1.07048797]
[1735685812627,0.26252495,701.46,700.19,1.07048797]
[1735685812822,0.26252495,701.45,700.19,1.07048797]
[1735685813025,1.06720895,701.56,700.19,1.07048797]
[1735685813233,0.26252502,701.55,700.18,1.07048797]
[1735685813429,0.26252502,701.54,700.18,1.07048797]
[1735685813629,1.06720895,701.57,700.18,1.07048797]
[1735685814326,0.26256162,701.56,700.06,0.28568979]
[1735685814525,0.26256162,701.55,700.06,0.28568979]
[1735685814727,0.26256162,701.59,700.06,0.28568979]
[1735685814929,0.26256162,701.58,700.06,0.28568979]
[1735685815128,0.26256162,701.57,700.06,0.28568979]
[1735685815327,0.26256162,701.56,700.06,0.28568979]
[1735685815533,1.48954005,701.6,700.06,0.28568979]
[1735685815534,0.26256162,701.55,700.06,0.28568979]
[1735685815730,0.26256162,701.54,700.06,0.28568979]
[1735685815930,0.26256162,701.53,700.06,0.28568979]
[1735685816135,0.26256162,701.52,700.06,0.28568979]
[1735685816331,0.26256162,701.51,700.06,0.28568979]
[1735685816630,0.26256162,701.5,700.06,0.28568979]
[1735685816836,0.26256162,701.49,700.06,0.28568979]
[1735685817428,0.26258644,701.48,700.06,0.28568979]
[1735685817633,0.26258644,701.47,700.06,0.28568979]
[1735685817834,0.26258644,701.46,700.06,0.28568979]
[1735685818034,0.26258644,701.45,700.06,0.28568979]
[1735685818229,1.49000243,701.5,700.06,0.28568979]
[1735685818230,0.26258644,701.44,700.06,0.28568979]
[1735685818434,0.26258644,701.43,700.06,0.28568979]
[1735685818734,0.26258644,701.42,700.06,0.28568979]
[1735685818934,0.26258644,701.41,700.06,0.28568979]
[1735685819233,0.26258644,701.4,700.06,0.28568979]
[1735685819434,0.26258644,701.39,700.06,0.28568979]
[1735685819734,0.26258644,701.38,700.06,0.28568979]
[1735685819934,0.26264173,701.37,700.06,0.28568979]
[1735685820135,0.26264173,701.36,700.06,0.28568979]
[1735685820335,0.25186133,701.35,700.06,0.28568979]
[1735685820633,1.49000243,701.5,700.06,0.28568979]
[1735685821430,0.26266349,701.49,700.06,0.28568979]
[1735685821830,0.26266299,701.48,700.06,0.28568979]
[1735685822037,1.06720895,701.46,700.06,0.28568979]
[1735685822239,0.26266299,701.45,700.06,0.28568979]
[1735685823437,0.26266299,701.44,700.06,0.28568979]
[1735685823636,0.26266299,701.43,700.06,0.28568979]
[1735685823833,0.26266299,701.42,700.06,0.28568979]
[1735685824034,0.26266299,701.41,700.06,0.28568979]
[1735685824234,0.26266299,701.4,700.06,0.28568979]
[1735685824439,0.26266299,701.39,700.06,0.28568979]
[1735685824640,0.26266299,701.38,700.06,0.28568979]
[1735685824941,1.49000243,701.5,700.06,0.28568979]
[1735685824942,0.26266299,701.37,700.06,0.28568979]
[1735685825141,0.26266299,701.36,700.06,0.28568979]
[1735685825342,0.26266299,701.35,700.06,0.28568979]
[1735685825542,0.26266299,701.34,700.06,0.28568979]
[1735685825741,0.26266299,701.33,700.06,0.28568979]
[1735685825942,0.26266299,701.32,700.06,0.28568979]
[1735685826143,0.26266299,701.31,700.06,0.28568979]
[1735685826340,0.26266299,701.3,700.06,0.28568979]
[1735685826537,0.26266299,701.29,700.06,0.28568979]
[1735685826742,0.26266299,701.28,700.06,0.28568979]
[1735685827046,0.26266299,701.27,700.06,0.28568979]
[1735685827236,0.26266299,701.26,700.06,0.28568979]
[1735685827543,0.26266299,701.26,699.11,2.67571329]
[1735685827544,0.26266299,701.26,699.23,1.07048797]
[1735685827738,0.26269905,701.25,699.25,0.28602073]
[1735685827938,0.26269905,701.24,699.25,0.28602073]
[1735685828143,0.26269905,701.23,699.25,0.28602073]
[1735685828341,0.26269905,701.22,699.25,0.28602073]
[1735685828543,0.26269905,701.21,699.25,0.28602073]
[1735685828742,0.26269905,701.2,699.25,0.28602073]
[1735685828939,0.26269905,701.19,699.25,0.28602073]
[1735685829247,0.26269905,701.18,699.25,0.28602073]
[1735685829544,0.26269905,701.17,699.25,0.28602073]
[1735685829746,0.26271283,701.16,699.25,0.28602073]
[1735685829943,0.26271283,701.15,699.25,0.28602073]
[1735685830143,0.26271283,701.14,699.25,0.28602073]
[1735685830445,0.26271283,701.13,699.25,0.28602073]
[1735685830646,0.26271283,701.12,699.25,0.28602073]
[1735685830844,1.49070984,701.27,699.25,0.28602073]
[1735685830845,0.26271283,701.11,699.25,0.28602073]
[1735685831140,0.26271283,701.1,699.25,0.28602073]
[1735685831446,0.26271283,701.09,699.25,0.28602073]
[1735685831643,0.26271283,701.08,699.25,0.28602073]
[1735685831839,0.26271283,701.07,699.25,0.28602073]
[1735685832044,0.26271283,701.06,699.25,0.28602073]
[1735685832247,1.49070984,701.27,699.25,0.28602073]
[1735685832443,0.26271266,701.26,699.25,0.28602073]
[1735685834245,0.28520905,701.24,699.25,0.28602073]
[1735685834443,0.26271266,701.23,699.25,0.28602073]
[1735685834640,0.28521719,701.22,699.25,0.28602073]
[1735685835147,0.26271657,701.21,699.25,0.28602073]
[1735685835749,0.2627165,701.2,699.25,0.28602073]
[1735685835947,0.28521719,701.22,699.25,0.28602073]
[1735685835948,0.2627165,701.19,699.25,0.28602073]
[1735685836149,0.28521719,701.22,699.25,0.28602073]
[1735685836150,0.2627165,701.18,699.25,0.28602073]
[1735685836449,0.2627165,701.17,699.25,0.28602073]
[1735685836651,0.2627165,701.16,699.25,0.28602073]
[1735685836846,0.2627165,701.15,699.25,0.28602073]
[1735685837047,0.2627165,701.14,699.25,0.28602073]
[1735685837347,1.49132737,701.14,699.25,0.28602073]
[1735685837548,0.26283516,701.13,699.25,0.28602073]
[1735685840150,0.26290478,701.12,699.25,0.28602073]
[1735685840347,1.49132737,701.14,699.25,0.28602073]
[1735685840348,0.26290478,701.11,699.25,0.28602073]
[1735685840551,0.26290478,701.1,699.25,0.28602073]
[1735685840750,0.26290478,701.09,699.25,0.28602073]
[1735685840953,1.49132737,701.14,699.25,0.28602073]
[1735685841253,0.26294296,701.13,699.25,0.28602073]
[1735685841452,0.26294296,701.12,699.25,0.28602073]
[1735685841652,0.26294296,701.11,699.25,0.28602073]
[1735685841849,0.26294296,701.1,699.25,0.28602073]
[1735685842148,0.26294296,701.09,699.25,0.28602073]
[1735685842351,0.26294296,701.08,699.25,0.28602073]
[1735685842552,0.26294296,701.07,699.25,0.28602073]
[1735685842753,0.26296241,701.06,699.25,0.28602073]
[1735685842953,0.26296241,701.05,699.25,0.28602073]
[1735685843145,0.26296241,701.04,699.25,0.28602073]
[1735685843345,1.06720895,701.1,699.25,0.28602073]
[1735685843550,0.26295501,701.09,699.25,0.28602073]
[1735685843753,0.26295501,701.08,699.25,0.28602073]
[1735685843947,0.26295501,701.07,699.25,0.28602073]
[1735685844151,0.26295501,701.06,699.25,0.28602073]
[1735685844353,0.26295501,701.05,699.25,0.28602073]
[1735685844651,0.26295501,701.04,699.25,0.28602073]
[1735685844952,0.26295501,701.03,699.25,0.28602073]
[1735685845154,0.26295501,701.02,699.25,0.28602073]
[1735685845454,0.26290934,701.01,699.25,0.28602073]
[1735685845654,0.26290934,701.0,699.25,0.28602073]
[1735685845854,0.26290934,700.99,699.25,0.28602073]
[1735685846054,0.26290934,700.98,699.25,0.28602073]
[1735685846255,0.26290934,700.97,699.25,0.28602073]
[1735685846551,0.28532705,700.95,699.25,0.28602073]
[1735685846853,0.26290934,700.94,699.25,0.28602073]
[1735685847049,0.26290934,700.93,699.25,0.28602073]
[1735685847355,0.28532705,700.95,699.25,0.28602073]
[1735685847356,0.26290934,700.92,699.25,0.28602073]
[1735685847557,0.26290934,700.91,699.25,0.28602073]
[1735685847755,0.26290934,700.9,699.25,0.28602073]
[1735685847956,0.26291105,700.89,699.25,0.28602073]
[1735685848156,0.26291105,700.88,699.25,0.28602073]
[1735685848357,0.26291105,700.87,699.25,0.28602073]
[1735685848557,0.26291105,700.86,699.25,0.28602073]
[1735685848758,0.26291105,700.85,699.25,0.28602073]
[1735685848956,0.26291105,700.84,699.25,0.28602073]
[1735685849158,0.26291105,700.83,699.25,0.28602073]
[1735685849454,0.26291105,700.82,699.25,0.28602073]
[1735685849658,0.26291105,700.81,699.25,0.28602073]
[1735685849958,0.26291105,700.8,699.25,0.28602073]
[1735685850159,0.54830325,700.79,699.25,0.28602073]
[1735685850353,0.54830732,700.78,699.25,0.28602073]
[1735685850552,0.54831018,700.77,699.25,0.28602073]
[1735685850757,0.54831425,700.76,699.25,0.28602073]
[1735685850957,0.26290984,700.75,699.25,0.28602073]
[1735685851155,0.28540441,700.76,699.25,0.28602073]
[1735685851358,0.26290194,700.75,699.25,0.28602073]
[1735685852459,0.28541256,700.74,699.25,0.28602073]
[1735685852757,0.26290194,700.73,699.25,0.28602073]
[1735685853159,0.28541256,700.74,699.25,0.28602073]
[1735685853360,0.26288146,700.73,699.25,0.28602073]
[1735685855756,0.28541256,700.74,699.25,0.28602073]
[1735685855960,0.26288401,700.73,699.25,0.28602073]
[1735685858056,1.49200939,700.72,699.25,0.28602073]
[1735685858261,0.26288401,700.71,699.25,0.28602073]
[1735685858454,0.26287006,700.7,699.25,0.28602073]
[1735685858659,0.26287006,700.69,699.25,0.28602073]
[1735685858858,0.26287006,700.68,699.25,0.28602073]
[1735685859056,0.26287006,700.67,699.25,0.28602073]
[1735685859259,0.26287006,700.66,699.25,0.28602073]
[1735685859558,0.26287006,700.65,699.25,0.28602073]
[1735685859758,0.26287006,700.64,699.25,0.28602073]
[1735685859957,0.26287006,700.63,699.25,0.28602073]
[1735685860160,0.26287006,700.62,699.25,0.28602073]
[1735685860361,0.26287006,700.61,699.25,0.28602073]
[1735685860560,0.26287006,700.6,699.25,0.28602073]
[1735685860757,0.26287006,700.59,699.25,0.28602073]
[1735685860961,0.26287006,700.58,699.25,0.28602073]
[1735685861161,1.49200939,700.72,699.25,0.28602073]